[Event "Titled Tuesday Blitz January 25 2022"]
[White "Stribuk, Artiom"]
[Black "Garcia Martin, Marta"]
[WhiteFideId "13515659"]
[BlackFideId "32084030"]
[WhiteElo "2224"]
[BlackElo "2102"]
[Result "1-0"]
[Round "02"]
[TimeControl "180+1"]
[Date "2022.01.26"]
[WhiteClock "0:00:09"]
[BlackClock "0:00:07"]

1. d4 {[%clk 0:03:00]}  b6 {[%clk 0:02:56]} 2. c4 {[%clk 0:02:53]}  Bb7 {[%clk 0:02:56]} 3. Nf3 {[%clk 0:02:53]}  e6 {[%clk 0:02:57]} 4. a3 {[%clk 0:02:50]}  Nf6 {[%clk 0:02:52]} 5. Nc3 {[%clk 0:02:51]}  d5 {[%clk 0:02:52]} 6. cxd5 {[%clk 0:02:51]}  Nxd5 {[%clk 0:02:53]} 7. Qc2 {[%clk 0:02:52]}  Nxc3 {[%clk 0:02:52]} 8. bxc3 {[%clk 0:02:51]}  Be7 {[%clk 0:02:52]} 9. e4 {[%clk 0:02:49]}  O-O {[%clk 0:02:48]} 10. Bd3 {[%clk 0:02:46]}  c5 {[%clk 0:02:48]} 11. O-O {[%clk 0:02:44]}  Qc7 {[%clk 0:02:49]} 12. Qe2 {[%clk 0:02:43]}  Rd8 {[%clk 0:02:44]} 13. Bb2 {[%clk 0:02:42]}  Nd7 {[%clk 0:02:38]} 14. Rad1 {[%clk 0:02:38]}  Nf8 {[%clk 0:02:24]} 15. Ne5 {[%clk 0:02:34]}  Rac8 {[%clk 0:01:52]} 16. f4 {[%clk 0:02:10]}  cxd4 {[%clk 0:01:20]} 17. cxd4 {[%clk 0:02:09]}  f6 {[%clk 0:01:19]} 18. Ng4 {[%clk 0:01:49]}  Qd7 {[%clk 0:01:17]} 19. f5 {[%clk 0:01:36]}  exf5 {[%clk 0:01:06]} 20. Rxf5 {[%clk 0:01:34]}  Ng6 {[%clk 0:00:59]} 21. Rdf1 {[%clk 0:01:04]}  Rf8 {[%clk 0:00:43]} 22. Rh5 {[%clk 0:01:00]}  Qe6 {[%clk 0:00:31]} 23. Ne3 {[%clk 0:00:34]}  Bxe4 {[%clk 0:00:20]} 24. Bc4 {[%clk 0:00:33]}  Rxc4 {[%clk 0:00:20]} 25. Nxc4 {[%clk 0:00:31]}  Bd5 {[%clk 0:00:18]} 26. Qxe6+ {[%clk 0:00:28]}  Bxe6 {[%clk 0:00:19]} 27. Ne3 {[%clk 0:00:29]}  Rd8 {[%clk 0:00:14]} 28. h3 {[%clk 0:00:25]}  Bf7 {[%clk 0:00:13]} 29. Rhf5 {[%clk 0:00:24]}  Bf8 {[%clk 0:00:12]} 30. Kh1 {[%clk 0:00:23]}  Ne7 {[%clk 0:00:12]} 31. R5f2 {[%clk 0:00:21]}  Nd5 {[%clk 0:00:12]} 32. Nc4 {[%clk 0:00:17]}  Rc8 {[%clk 0:00:11]} 33. Rc1 {[%clk 0:00:16]}  Nf4 {[%clk 0:00:05]} 34. Rxf4 {[%clk 0:00:13]}  Rxc4 {[%clk 0:00:04]} 35. Rxc4 {[%clk 0:00:13]}  Bxc4 {[%clk 0:00:05]} 36. Rf2 {[%clk 0:00:13]}  Kf7 {[%clk 0:00:06]} 37. Rc2 {[%clk 0:00:10]}  b5 {[%clk 0:00:06]} 38. Kg1 {[%clk 0:00:11]}  Ke6 {[%clk 0:00:06]} 39. Kf2 {[%clk 0:00:12]}  Kd5 {[%clk 0:00:07]} 40. Ke3 {[%clk 0:00:12]}  Bd6 {[%clk 0:00:07]} 41. Rf2 {[%clk 0:00:11]}  g6 {[%clk 0:00:07]} 42. Rxf6 {[%clk 0:00:11]}  a5 {[%clk 0:00:07]} 43. Rf7 {[%clk 0:00:09]}  b4 {[%clk 0:00:08]} 44. axb4 {[%clk 0:00:10]}  axb4 {[%clk 0:00:08]} 45. Rxh7 {[%clk 0:00:10]}  b3 {[%clk 0:00:07]} 46. Rg7 {[%clk 0:00:09]} 1-0


[Site "https://www.chess.com"]

[Event "Titled Tuesday Blitz January 25 2022"]
[White "Sviridov, Valery"]
[Black "Omelja, Artem"]
[WhiteFideId "4120680"]
[BlackFideId "14119846"]
[WhiteElo "2454"]
[BlackElo "2418"]
[Result "1-0"]
[Round "02"]
[TimeControl "180+1"]
[Date "2022.01.26"]
[WhiteClock "0:01:15"]
[BlackClock "0:00:02"]

1. Nf3 {[%clk 0:03:00]}  d5 {[%clk 0:02:59]} 2. g3 {[%clk 0:03:01]}  Nf6 {[%clk 0:02:58]} 3. Bg2 {[%clk 0:03:01]}  c6 {[%clk 0:02:58]} 4. O-O {[%clk 0:03:02]}  Bf5 {[%clk 0:02:58]} 5. c4 {[%clk 0:03:01]}  e6 {[%clk 0:02:56]} 6. cxd5 {[%clk 0:03:00]}  exd5 {[%clk 0:02:55]} 7. d3 {[%clk 0:03:00]}  h6 {[%clk 0:02:54]} 8. Nc3 {[%clk 0:03:00]}  Be7 {[%clk 0:02:51]} 9. Nd4 {[%clk 0:02:59]}  Bg6 {[%clk 0:02:46]} 10. e4 {[%clk 0:02:59]}  O-O {[%clk 0:02:34]} 11. h3 {[%clk 0:02:55]}  c5 {[%clk 0:02:02]} 12. Nb3 {[%clk 0:02:48]}  d4 {[%clk 0:01:55]} 13. Ne2 {[%clk 0:02:48]}  Nc6 {[%clk 0:01:55]} 14. f4 {[%clk 0:02:44]}  c4 {[%clk 0:01:41]} 15. dxc4 {[%clk 0:02:41]}  Bxe4 {[%clk 0:01:36]} 16. Nexd4 {[%clk 0:02:30]}  Bxg2 {[%clk 0:01:28]} 17. Kxg2 {[%clk 0:02:30]}  Nxd4 {[%clk 0:01:25]} 18. Qxd4 {[%clk 0:02:31]}  Qc7 {[%clk 0:01:23]} 19. Be3 {[%clk 0:02:28]}  Rfd8 {[%clk 0:01:12]} 20. Qc3 {[%clk 0:02:28]}  Rac8 {[%clk 0:00:56]} 21. Rac1 {[%clk 0:02:23]}  Qc6+ {[%clk 0:00:53]} 22. Kh2 {[%clk 0:02:22]}  Ne4 {[%clk 0:00:51]} 23. Qc2 {[%clk 0:02:16]}  f5 {[%clk 0:00:48]} 24. Nd4 {[%clk 0:01:45]}  Qg6 {[%clk 0:00:31]} 25. g4 {[%clk 0:01:46]}  fxg4 {[%clk 0:00:25]} 26. hxg4 {[%clk 0:01:47]}  Bh4 {[%clk 0:00:15]} 27. Rg1 {[%clk 0:01:44]}  Re8 {[%clk 0:00:13]} 28. Nf5 {[%clk 0:01:43]}  Bf6 {[%clk 0:00:13]} 29. Rce1 {[%clk 0:01:39]}  Qf7 {[%clk 0:00:12]} 30. b3 {[%clk 0:01:36]}  b5 {[%clk 0:00:12]} 31. Bc1 {[%clk 0:01:28]}  bxc4 {[%clk 0:00:08]} 32. Rxe4 {[%clk 0:01:27]}  Rxe4 {[%clk 0:00:07]} 33. Qxe4 {[%clk 0:01:27]}  cxb3 {[%clk 0:00:08]} 34. Nd6 {[%clk 0:01:20]}  bxa2 {[%clk 0:00:05]} 35. Nxf7 {[%clk 0:01:15]}  a1=Q {[%clk 0:00:05]} 36. Nxh6+ {[%clk 0:01:16]}  gxh6 {[%clk 0:00:04]} 37. Qe6+ {[%clk 0:01:16]}  Kg7 {[%clk 0:00:04]} 38. Qd7+ {[%clk 0:01:16]}  Be7 {[%clk 0:00:01]} 39. Qxe7+ {[%clk 0:01:16]}  Kh8 {[%clk 0:00:01]} 40. Qe5+ {[%clk 0:01:14]}  Qxe5 {[%clk 0:00:01]} 41. fxe5 {[%clk 0:01:15]}  a5 {[%clk 0:00:01]} 42. Bxh6 {[%clk 0:01:14]}  Kg8 {[%clk 0:00:01]} 43. Ra1 {[%clk 0:01:14]}  Rc5 {[%clk 0:00:01]} 44. Bf4 {[%clk 0:01:14]}  Kf7 {[%clk 0:00:01]} 45. Rb1 {[%clk 0:01:12]}  Ke6 {[%clk 0:00:01]} 46. Rb6+ {[%clk 0:01:12]}  Ke7 {[%clk 0:00:02]} 47. Ra6 {[%clk 0:01:13]}  Rc4 {[%clk 0:00:02]} 48. Kg3 {[%clk 0:01:13]}  a4 {[%clk 0:00:01]} 49. Bg5+ {[%clk 0:01:14]}  Kf7 {[%clk 0:00:02]} 50. e6+ {[%clk 0:01:14]}  Kg6 {[%clk 0:00:01]} 51. e7+ {[%clk 0:01:14]}  Kf7 {[%clk 0:00:02]} 52. Rf6+ {[%clk 0:01:15]} 1-0


[Site "https://www.chess.com"]

[Event "Titled Tuesday Blitz January 25 2022"]
[White "Sychev, Klementy"]
[Black "Nazaretyan, Tigran"]
[WhiteFideId "4114060"]
[BlackFideId "24162345"]
[WhiteElo "2564"]
[BlackElo "2192"]
[Result "1-0"]
[Round "02"]
[TimeControl "180+1"]
[Date "2022.01.26"]
[WhiteClock "0:00:21"]
[BlackClock "0:00:03"]

1. e4 {[%clk 0:02:54]}  c5 {[%clk 0:02:59]} 2. Nf3 {[%clk 0:02:52]}  d6 {[%clk 0:02:59]} 3. Bb5+ {[%clk 0:02:50]}  Bd7 {[%clk 0:02:59]} 4. Bxd7+ {[%clk 0:02:49]}  Qxd7 {[%clk 0:03:00]} 5. c4 {[%clk 0:02:49]}  e5 {[%clk 0:02:58]} 6. Nc3 {[%clk 0:02:47]}  Nc6 {[%clk 0:02:53]} 7. d3 {[%clk 0:02:46]}  Nge7 {[%clk 0:02:49]} 8. a3 {[%clk 0:02:40]}  a5 {[%clk 0:02:43]} 9. Rb1 {[%clk 0:02:40]}  g6 {[%clk 0:02:42]} 10. Qa4 {[%clk 0:02:14]}  Bg7 {[%clk 0:02:33]} 11. b4 {[%clk 0:02:13]}  O-O {[%clk 0:02:13]} 12. bxc5 {[%clk 0:02:12]}  dxc5 {[%clk 0:02:12]} 13. Nd5 {[%clk 0:02:13]}  Rad8 {[%clk 0:01:55]} 14. Bg5 {[%clk 0:01:49]}  f6 {[%clk 0:01:47]} 15. Be3 {[%clk 0:01:48]}  Nxd5 {[%clk 0:01:28]} 16. cxd5 {[%clk 0:01:36]}  Nd4 {[%clk 0:01:20]} 17. Qxd7 {[%clk 0:01:31]}  Rxd7 {[%clk 0:01:18]} 18. a4 {[%clk 0:01:24]}  Rc8 {[%clk 0:01:10]} 19. Nd2 {[%clk 0:01:23]}  Nc2+ {[%clk 0:01:07]} 20. Ke2 {[%clk 0:01:21]}  f5 {[%clk 0:01:04]} 21. Nc4 {[%clk 0:01:15]}  f4 {[%clk 0:00:49]} 22. Nb6 {[%clk 0:01:10]}  fxe3 {[%clk 0:00:48]} 23. Nxd7 {[%clk 0:01:06]}  Nd4+ {[%clk 0:00:47]} 24. Kxe3 {[%clk 0:01:00]}  Bh6+ {[%clk 0:00:46]} 25. f4 {[%clk 0:01:00]}  Bxf4+ {[%clk 0:00:41]} 26. Kf2 {[%clk 0:01:00]}  c4 {[%clk 0:00:41]} 27. g3 {[%clk 0:00:48]}  Bh6 {[%clk 0:00:33]} 28. dxc4 {[%clk 0:00:47]}  Rxc4 {[%clk 0:00:33]} 29. Kg2 {[%clk 0:00:48]}  Rxa4 {[%clk 0:00:25]} 30. Rxb7 {[%clk 0:00:46]}  Ra2+ {[%clk 0:00:25]} 31. Kh3 {[%clk 0:00:45]}  Bg5 {[%clk 0:00:20]} 32. Kg4 {[%clk 0:00:41]}  Be7 {[%clk 0:00:15]} 33. Nxe5 {[%clk 0:00:41]}  h5+ {[%clk 0:00:15]} 34. Kh3 {[%clk 0:00:40]}  Bf6 {[%clk 0:00:09]} 35. Rc1 {[%clk 0:00:37]}  Rc2 {[%clk 0:00:04]} 36. Rxc2 {[%clk 0:00:36]}  Nxc2 {[%clk 0:00:05]} 37. Nc6 {[%clk 0:00:34]}  a4 {[%clk 0:00:05]} 38. e5 {[%clk 0:00:34]}  a3 {[%clk 0:00:04]} 39. exf6 {[%clk 0:00:30]}  a2 {[%clk 0:00:04]} 40. Rg7+ {[%clk 0:00:22]}  Kf8 {[%clk 0:00:04]} 41. Ne7 {[%clk 0:00:19]}  a1=Q {[%clk 0:00:02]} 42. Nxg6+ {[%clk 0:00:19]}  Ke8 {[%clk 0:00:02]} 43. f7+ {[%clk 0:00:19]}  Kd7 {[%clk 0:00:03]} 44. f8=Q+ {[%clk 0:00:19]}  Qxg7 {[%clk 0:00:01]} 45. Qxg7+ {[%clk 0:00:19]}  Kd6 {[%clk 0:00:01]} 46. Qe5+ {[%clk 0:00:19]}  Kc5 {[%clk 0:00:01]} 47. d6+ {[%clk 0:00:19]}  Kc6 {[%clk 0:00:02]} 48. Qe4+ {[%clk 0:00:19]}  Kxd6 {[%clk 0:00:02]} 49. Qxc2 {[%clk 0:00:20]}  h4 {[%clk 0:00:03]} 50. Nxh4 {[%clk 0:00:20]}  Ke6 {[%clk 0:00:03]} 51. Nf3 {[%clk 0:00:20]}  Kd5 {[%clk 0:00:03]} 52. Kg4 {[%clk 0:00:20]}  Ke6 {[%clk 0:00:02]} 53. h4 {[%clk 0:00:21]}  Kf7 {[%clk 0:00:02]} 54. h5 {[%clk 0:00:22]}  Kg8 {[%clk 0:00:02]} 55. h6 {[%clk 0:00:21]}  Kh8 {[%clk 0:00:03]} 56. Qf5 {[%clk 0:00:21]}  Kg8 {[%clk 0:00:03]} 57. Ng5 {[%clk 0:00:21]} 1-0


[Site "https://www.chess.com"]

[Event "Titled Tuesday Blitz January 25 2022"]
[White "Vakhlamov, Igor L."]
[Black "Mortazavi, Ali"]
[WhiteFideId "24126748"]
[BlackFideId "401323"]
[WhiteElo "2401"]
[BlackElo "2339"]
[Result "1-0"]
[Round "02"]
[TimeControl "180+1"]
[Date "2022.01.26"]
[WhiteClock "0:00:23"]
[BlackClock "0:00:02"]

1. e4 {[%clk 0:03:00]}  c6 {[%clk 0:03:00]} 2. Nc3 {[%clk 0:02:56]}  d5 {[%clk 0:03:00]} 3. Nf3 {[%clk 0:02:57]}  dxe4 {[%clk 0:03:01]} 4. Nxe4 {[%clk 0:02:57]}  Nf6 {[%clk 0:03:01]} 5. Qe2 {[%clk 0:02:58]}  Be6 {[%clk 0:03:01]} 6. b3 {[%clk 0:02:38]}  g6 {[%clk 0:02:47]} 7. Nc5 {[%clk 0:02:18]}  Bc8 {[%clk 0:02:39]} 8. Bb2 {[%clk 0:02:16]}  Bg7 {[%clk 0:02:40]} 9. g3 {[%clk 0:02:14]}  Qd5 {[%clk 0:02:15]} 10. Nd3 {[%clk 0:02:03]}  Bf5 {[%clk 0:02:14]} 11. Nf4 {[%clk 0:02:00]}  Qe4 {[%clk 0:02:00]} 12. d3 {[%clk 0:01:59]}  Qb4+ {[%clk 0:01:59]} 13. Qd2 {[%clk 0:01:51]}  Qxd2+ {[%clk 0:01:49]} 14. Nxd2 {[%clk 0:01:52]}  Bh6 {[%clk 0:01:45]} 15. Ne2 {[%clk 0:01:47]}  O-O {[%clk 0:01:43]} 16. Bg2 {[%clk 0:01:47]}  a5 {[%clk 0:01:43]} 17. Ne4 {[%clk 0:01:34]}  Nd5 {[%clk 0:01:43]} 18. a3 {[%clk 0:01:24]}  Na6 {[%clk 0:01:37]} 19. O-O {[%clk 0:01:23]}  Rad8 {[%clk 0:01:35]} 20. Rfe1 {[%clk 0:01:23]}  Rfe8 {[%clk 0:01:31]} 21. h3 {[%clk 0:01:20]}  Bg7 {[%clk 0:01:27]} 22. Bxg7 {[%clk 0:01:17]}  Kxg7 {[%clk 0:01:28]} 23. N2c3 {[%clk 0:01:14]}  Nxc3 {[%clk 0:01:17]} 24. Nxc3 {[%clk 0:01:15]}  Rd4 {[%clk 0:01:12]} 25. Re5 {[%clk 0:01:13]}  b6 {[%clk 0:00:46]} 26. Bxc6 {[%clk 0:01:12]}  Rc8 {[%clk 0:00:46]} 27. Nb5 {[%clk 0:01:03]}  Rdd8 {[%clk 0:00:28]} 28. Bb7 {[%clk 0:01:03]}  Rxc2 {[%clk 0:00:22]} 29. Bxa6 {[%clk 0:01:00]}  Rxd3 {[%clk 0:00:18]} 30. g4 {[%clk 0:00:57]}  Be6 {[%clk 0:00:16]} 31. Nc7 {[%clk 0:00:54]}  Rxh3 {[%clk 0:00:07]} 32. Nxe6+ {[%clk 0:00:52]}  fxe6 {[%clk 0:00:08]} 33. Rxe6 {[%clk 0:00:52]}  Rxb3 {[%clk 0:00:09]} 34. Rxe7+ {[%clk 0:00:45]}  Kh6 {[%clk 0:00:09]} 35. a4 {[%clk 0:00:40]}  Rbb2 {[%clk 0:00:07]} 36. Rf1 {[%clk 0:00:40]}  Rb4 {[%clk 0:00:07]} 37. Bb5 {[%clk 0:00:34]}  Rxg4+ {[%clk 0:00:07]} 38. Kh2 {[%clk 0:00:34]}  Rc5 {[%clk 0:00:07]} 39. Re3 {[%clk 0:00:31]}  Kg5 {[%clk 0:00:06]} 40. Rg3 {[%clk 0:00:30]}  h5 {[%clk 0:00:04]} 41. f4+ {[%clk 0:00:29]}  Kh4 {[%clk 0:00:05]} 42. Rfg1 {[%clk 0:00:24]}  Rxg3 {[%clk 0:00:02]} 43. Rxg3 {[%clk 0:00:24]}  Rc2+ {[%clk 0:00:02]} 44. Rg2 {[%clk 0:00:23]} 1-0


[Site "https://www.chess.com"]

[Event "Titled Tuesday Blitz January 25 2022"]
[White "Weishaeutel, Moritz"]
[Black "Hess, Robert"]
[WhiteFideId "12967300"]
[BlackFideId "2022036"]
[WhiteElo "2002"]
[BlackElo "2557"]
[Result "1/2-1/2"]
[Round "02"]
[TimeControl "180+1"]
[Date "2022.01.26"]
[WhiteClock "0:00:08"]
[BlackClock "0:00:05"]

1. e4 {[%clk 0:03:00]}  g6 {[%clk 0:03:00]} 2. h4 {[%clk 0:03:00]}  d5 {[%clk 0:02:57]} 3. exd5 {[%clk 0:02:58]}  Nf6 {[%clk 0:02:56]} 4. d4 {[%clk 0:02:54]}  Qxd5 {[%clk 0:02:51]} 5. Nc3 {[%clk 0:02:52]}  Qa5 {[%clk 0:02:52]} 6. Nf3 {[%clk 0:02:45]}  Bg4 {[%clk 0:02:48]} 7. Be2 {[%clk 0:02:43]}  Nc6 {[%clk 0:02:48]} 8. Be3 {[%clk 0:02:38]}  O-O-O {[%clk 0:02:48]} 9. Ng5 {[%clk 0:01:42]}  Be6 {[%clk 0:02:22]} 10. O-O {[%clk 0:01:23]}  Bg7 {[%clk 0:01:57]} 11. Bf3 {[%clk 0:01:03]}  Bc4 {[%clk 0:01:52]} 12. Bxc6 {[%clk 0:00:57]}  bxc6 {[%clk 0:01:44]} 13. Re1 {[%clk 0:00:57]}  h6 {[%clk 0:01:23]} 14. Nge4 {[%clk 0:00:53]}  Nxe4 {[%clk 0:01:18]} 15. Nxe4 {[%clk 0:00:54]}  f5 {[%clk 0:01:17]} 16. Nc5 {[%clk 0:00:50]}  e5 {[%clk 0:01:15]} 17. Qf3 {[%clk 0:00:47]}  exd4 {[%clk 0:00:47]} 18. Nb3 {[%clk 0:00:34]}  Qd5 {[%clk 0:00:34]} 19. Qxd5 {[%clk 0:00:17]}  Rxd5 {[%clk 0:00:35]} 20. Bf4 {[%clk 0:00:17]}  d3 {[%clk 0:00:17]} 21. cxd3 {[%clk 0:00:18]}  Bxd3 {[%clk 0:00:17]} 22. Re7 {[%clk 0:00:18]}  g5 {[%clk 0:00:09]} 23. Bh2 {[%clk 0:00:14]}  Bxb2 {[%clk 0:00:07]} 24. Rxc7+ {[%clk 0:00:12]}  Kd8 {[%clk 0:00:06]} 25. Rd1 {[%clk 0:00:13]}  f4 {[%clk 0:00:02]} 26. Rxa7 {[%clk 0:00:13]}  Kc8 {[%clk 0:00:01]} 27. Ra8+ {[%clk 0:00:03]}  Kc7 {[%clk 0:00:02]} 28. Rxh8 {[%clk 0:00:04]}  Bxh8 {[%clk 0:00:02]} 29. hxg5 {[%clk 0:00:04]}  hxg5 {[%clk 0:00:03]} 30. g3 {[%clk 0:00:05]}  Be5 {[%clk 0:00:03]} 31. gxf4 {[%clk 0:00:05]}  gxf4 {[%clk 0:00:04]} 32. Nc1 {[%clk 0:00:05]}  Bc4 {[%clk 0:00:04]} 33. Rxd5 {[%clk 0:00:06]}  Bxd5 {[%clk 0:00:04]} 34. Ne2 {[%clk 0:00:06]}  Bxa2 {[%clk 0:00:04]} 35. Bxf4 {[%clk 0:00:07]}  Kd6 {[%clk 0:00:04]} 36. Bxe5+ {[%clk 0:00:07]}  Kxe5 {[%clk 0:00:04]} 37. Kf1 {[%clk 0:00:06]}  Bc4 {[%clk 0:00:04]} 38. Ke1 {[%clk 0:00:07]}  Ke4 {[%clk 0:00:05]} 39. Kd2 {[%clk 0:00:06]}  c5 {[%clk 0:00:04]} 40. Nc3+ {[%clk 0:00:06]}  Kf3 {[%clk 0:00:05]} 41. Na4 {[%clk 0:00:07]}  Kxf2 {[%clk 0:00:05]} 42. Nxc5 {[%clk 0:00:08]} 1/2-1/2


[Site "https://www.chess.com"]

[Event "Titled Tuesday Blitz January 25 2022"]
[White "Willow, Jonah B"]
[Black "Putnam, Liam"]
[WhiteFideId "438804"]
[BlackFideId "30938279"]
[WhiteElo "2261"]
[BlackElo "2035"]
[Result "1-0"]
[Round "02"]
[TimeControl "180+1"]
[Date "2022.01.26"]
[WhiteClock "0:02:11"]
[BlackClock "0:00:24"]

1. e4 {[%clk 0:03:00]}  c5 {[%clk 0:02:57]} 2. Nf3 {[%clk 0:03:01]}  d6 {[%clk 0:02:58]} 3. Nc3 {[%clk 0:03:01]}  Nf6 {[%clk 0:02:58]} 4. e5 {[%clk 0:02:59]}  dxe5 {[%clk 0:02:58]} 5. Nxe5 {[%clk 0:03:00]}  a6 {[%clk 0:02:59]} 6. g3 {[%clk 0:02:58]}  Qd6 {[%clk 0:02:58]} 7. Nc4 {[%clk 0:02:44]}  Qc6 {[%clk 0:02:57]} 8. Rg1 {[%clk 0:02:42]}  Bg4 {[%clk 0:02:55]} 9. Be2 {[%clk 0:02:39]}  Bxe2 {[%clk 0:02:55]} 10. Qxe2 {[%clk 0:02:40]}  e6 {[%clk 0:02:47]} 11. d3 {[%clk 0:02:32]}  Nbd7 {[%clk 0:02:45]} 12. Bf4 {[%clk 0:02:32]}  Be7 {[%clk 0:02:37]} 13. O-O-O {[%clk 0:02:32]}  b5 {[%clk 0:02:28]} 14. Ne5 {[%clk 0:02:32]}  Nxe5 {[%clk 0:02:29]} 15. Bxe5 {[%clk 0:02:33]}  O-O {[%clk 0:02:29]} 16. g4 {[%clk 0:02:31]}  Rfd8 {[%clk 0:02:17]} 17. Kb1 {[%clk 0:02:29]}  b4 {[%clk 0:02:01]} 18. Bxf6 {[%clk 0:02:28]}  Bxf6 {[%clk 0:01:57]} 19. Ne4 {[%clk 0:02:29]}  Be7 {[%clk 0:01:56]} 20. g5 {[%clk 0:02:28]}  Rd4 {[%clk 0:01:47]} 21. Qh5 {[%clk 0:02:22]}  Rd5 {[%clk 0:01:30]} 22. Qh4 {[%clk 0:02:20]}  Kh8 {[%clk 0:01:03]} 23. Rg3 {[%clk 0:02:19]}  c4 {[%clk 0:00:57]} 24. Nf6 {[%clk 0:02:12]}  gxf6 {[%clk 0:00:53]} 25. Rh3 {[%clk 0:02:12]}  h5 {[%clk 0:00:24]} 26. Qxh5+ {[%clk 0:02:11]}  Kg7 {[%clk 0:00:25]} 27. Qh6+ {[%clk 0:02:11]}  Kg8 {[%clk 0:00:24]} 28. Qh8# {[%clk 0:02:11]} 1-0


[Site "https://www.chess.com"]

[Event "Titled Tuesday Blitz January 25 2022"]
[White "Yang, Kaiqi"]
[Black "Nesterov, Arseniy"]
[WhiteFideId "8604398"]
[BlackFideId "24198455"]
[WhiteElo "2373"]
[BlackElo "2489"]
[Result "0-1"]
[Round "02"]
[TimeControl "180+1"]
[Date "2022.01.26"]
[WhiteClock "0:00:03"]
[BlackClock "0:00:03"]

1. c4 {[%clk 0:03:00]}  e5 {[%clk 0:02:59]} 2. g3 {[%clk 0:02:59]}  Nc6 {[%clk 0:02:58]} 3. Bg2 {[%clk 0:02:59]}  Bc5 {[%clk 0:02:58]} 4. Nc3 {[%clk 0:02:56]}  d6 {[%clk 0:02:56]} 5. e3 {[%clk 0:02:57]}  Nge7 {[%clk 0:02:56]} 6. Nge2 {[%clk 0:02:57]}  a6 {[%clk 0:02:56]} 7. d4 {[%clk 0:02:57]}  Ba7 {[%clk 0:02:57]} 8. O-O {[%clk 0:02:55]}  O-O {[%clk 0:02:57]} 9. b3 {[%clk 0:02:55]}  exd4 {[%clk 0:02:37]} 10. Nxd4 {[%clk 0:02:50]}  Nxd4 {[%clk 0:02:36]} 11. exd4 {[%clk 0:02:50]}  Nf5 {[%clk 0:02:37]} 12. d5 {[%clk 0:02:39]}  Bd7 {[%clk 0:02:31]} 13. Qd3 {[%clk 0:02:35]}  Re8 {[%clk 0:02:27]} 14. Bb2 {[%clk 0:02:34]}  Qf6 {[%clk 0:02:15]} 15. Rae1 {[%clk 0:02:10]}  Rxe1 {[%clk 0:01:52]} 16. Rxe1 {[%clk 0:02:11]}  Nh4 {[%clk 0:01:52]} 17. Nd1 {[%clk 0:02:07]}  Qg6 {[%clk 0:01:42]} 18. Be4 {[%clk 0:01:49]}  Re8 {[%clk 0:01:29]} 19. Re2 {[%clk 0:01:31]}  f5 {[%clk 0:00:53]} 20. Bh1 {[%clk 0:01:30]}  Rxe2 {[%clk 0:00:32]} 21. Qxe2 {[%clk 0:01:31]}  f4 {[%clk 0:00:33]} 22. Be4 {[%clk 0:01:04]}  Bf5 {[%clk 0:00:20]} 23. Bxf5 {[%clk 0:00:59]}  Nxf5 {[%clk 0:00:21]} 24. Kg2 {[%clk 0:00:40]}  h5 {[%clk 0:00:04]} 25. Qe6+ {[%clk 0:00:23]}  Qxe6 {[%clk 0:00:04]} 26. dxe6 {[%clk 0:00:24]}  fxg3 {[%clk 0:00:04]} 27. hxg3 {[%clk 0:00:24]}  Bd4 {[%clk 0:00:03]} 28. Bc1 {[%clk 0:00:11]}  Kf8 {[%clk 0:00:03]} 29. Bg5 {[%clk 0:00:10]}  Bf6 {[%clk 0:00:04]} 30. Bxf6 {[%clk 0:00:10]}  gxf6 {[%clk 0:00:04]} 31. Nc3 {[%clk 0:00:07]}  c6 {[%clk 0:00:05]} 32. Kf3 {[%clk 0:00:05]}  Ke7 {[%clk 0:00:04]} 33. g4 {[%clk 0:00:05]}  hxg4+ {[%clk 0:00:03]} 34. Kxg4 {[%clk 0:00:06]}  Kxe6 {[%clk 0:00:04]} 35. Ne4 {[%clk 0:00:06]}  Nd4 {[%clk 0:00:03]} 36. Ng3 {[%clk 0:00:05]}  Ke5 {[%clk 0:00:03]} 37. Nh5 {[%clk 0:00:04]}  Ne2 {[%clk 0:00:03]} 38. Kf3 {[%clk 0:00:04]}  Nc3 {[%clk 0:00:03]} 39. a3 {[%clk 0:00:04]}  Ne4 {[%clk 0:00:02]} 40. Ng7 {[%clk 0:00:04]}  Ng5+ {[%clk 0:00:02]} 41. Ke3 {[%clk 0:00:04]}  Ne6 {[%clk 0:00:02]} 42. Ne8 {[%clk 0:00:04]}  d5 {[%clk 0:00:03]} 43. cxd5 {[%clk 0:00:04]}  cxd5 {[%clk 0:00:03]} 44. b4 {[%clk 0:00:04]}  d4+ {[%clk 0:00:04]} 45. Kd3 {[%clk 0:00:04]}  Nf4+ {[%clk 0:00:04]} 46. Kc4 {[%clk 0:00:04]}  b5+ {[%clk 0:00:05]} 47. Kb3 {[%clk 0:00:03]}  Ne6 {[%clk 0:00:05]} 48. f3 {[%clk 0:00:03]}  f5 {[%clk 0:00:05]} 49. Kc2 {[%clk 0:00:03]}  Kf4 {[%clk 0:00:05]} 50. Nd6 {[%clk 0:00:03]}  Kxf3 {[%clk 0:00:05]} 51. Nxf5 {[%clk 0:00:03]}  Ke4 {[%clk 0:00:05]} 52. Nd6+ {[%clk 0:00:02]}  Ke3 {[%clk 0:00:05]} 53. Kd1 {[%clk 0:00:03]}  d3 {[%clk 0:00:05]} 54. Nf5+ {[%clk 0:00:03]}  Ke4 {[%clk 0:00:05]} 55. Nd6+ {[%clk 0:00:03]}  Kd4 {[%clk 0:00:05]} 56. Ne8 {[%clk 0:00:03]}  Kc3 {[%clk 0:00:05]} 57. Nf6 {[%clk 0:00:02]}  Kb3 {[%clk 0:00:05]} 58. Ne4 {[%clk 0:00:03]}  Kxa3 {[%clk 0:00:05]} 59. Nc5 {[%clk 0:00:03]}  Nc7 {[%clk 0:00:04]} 60. Nxd3 {[%clk 0:00:03]}  Nd5 {[%clk 0:00:04]} 61. Kc1 {[%clk 0:00:02]}  Nxb4 {[%clk 0:00:04]} 62. Nc5 {[%clk 0:00:03]}  a5 {[%clk 0:00:04]} 63. Kb1 {[%clk 0:00:03]}  Nd5 {[%clk 0:00:05]} 64. Nd3 {[%clk 0:00:01]}  Kb3 {[%clk 0:00:04]} 65. Ka1 {[%clk 0:00:01]}  a4 {[%clk 0:00:04]} 66. Nc5+ {[%clk 0:00:01]}  Kb4 {[%clk 0:00:04]} 67. Nd3+ {[%clk 0:00:02]}  Kc3 {[%clk 0:00:05]} 68. Ne5 {[%clk 0:00:01]}  b4 {[%clk 0:00:05]} 69. Nc6 {[%clk 0:00:02]}  b3 {[%clk 0:00:05]} 70. Kb1 {[%clk 0:00:02]}  a3 {[%clk 0:00:02]} 71. Na5 {[%clk 0:00:03]}  Nb4 {[%clk 0:00:01]} 72. Ka1 {[%clk 0:00:02]}  Nc2+ {[%clk 0:00:02]} 73. Kb1 {[%clk 0:00:02]}  a2+ {[%clk 0:00:02]} 74. Kc1 {[%clk 0:00:03]}  a1=Q# {[%clk 0:00:03]} 0-1


[Site "https://www.chess.com"]